fUST/lending_fUST_20240706
["ID","MTS","AMOUNT","RATE_DAILY","PERIOD"]
[331323116,1720225851064,-500.0,0.00049315,120]
[331323117,1720225851074,-500.0,0.00049315,120]
[331323118,1720225851086,-150.04519737,0.00049315,120]
[331323119,1720225851095,-500.0,0.00049315,120]
[331323120,1720225851105,-500.0,0.00049315,120]
[331323121,1720225851115,-500.0,0.00049315,120]
[331323122,1720225851124,-500.0,0.00049315,120]
[331323123,1720225851134,-500.0,0.00049315,120]
[331323124,1720225851143,-779.62,0.00049315,120]
[331323125,1720225851153,-500.0,0.00049315,120]
[331323126,1720225851163,-500.0,0.00049315,120]
[331323127,1720225851173,-483.18751929,0.00049315,120]
[331323128,1720225851183,-500.0,0.00049315,120]
[331323129,1720225851193,-500.0,0.00049315,120]
[331323130,1720225851203,-443.36867269,0.00049315,120]
[331323131,1720225851213,-500.0,0.00049315,120]
[331323132,1720225851223,-500.0,0.00049315,120]
[331323133,1720225851233,-500.0,0.00049315,120]
[331323134,1720225851243,-905.78,0.00049315,120]
[331323135,1720225851252,-502.11441491,0.00049315,120]
[331323136,1720225851262,-500.0,0.00049315,120]
[331323137,1720225851272,-504.42264133,0.00049315,90]
[331323138,1720225851281,-500.0,0.00049315,120]
[331323139,1720225851292,-1650.65,0.00049315,120]
[331323140,1720225851302,-501.12506946,0.00049315,120]
[331323141,1720225851312,-500.0,0.00049315,120]
[331323142,1720225851327,-500.0,0.00049315,120]
[331323143,1720225851340,-500.0,0.00049315,120]
[331323144,1720225851350,-513.35,0.00049315,120]
[331323145,1720225851360,-1078.57,0.00049315,120]
[331323146,1720225851370,-500.0,0.00049315,120]
[331323147,1720225851380,-500.0,0.00049315,120]
[331323148,1720225851391,-408.51976373,0.00049315,120]
[331323149,1720225851401,-500.0,0.00049315,120]
[331323150,1720225851412,-500.0,0.00049315,120]
[331323151,1720225851422,-500.0,0.00049315,120]
[331323152,1720225851432,-500.0,0.00049315,120]
[331323153,1720225851441,-500.0,0.00049315,120]
[331323154,1720225851452,-500.0,0.00049315,120]
[331323155,1720225851462,-500.0,0.00049315,120]
[331323156,1720225851472,-9852.86,0.00049315,120]
[331323157,1720225851482,-151.0,0.00049315,14]
[331323158,1720225851492,-500.0,0.00049315,120]
[331323159,1720225851503,-151.0,0.00049315,14]
[331323160,1720225851512,-151.0,0.00049315,14]
[331323161,1720225851522,-151.0,0.00049315,14]
[331323162,1720225851532,-222.008703,0.00049315,14]
[331323163,1720225851542,-500.0,0.00049315,120]
[331323164,1720225851551,-151.0,0.00049315,14]
[331323165,1720225851561,-151.0,0.00049315,14]
[331323166,1720225851570,-500.0,0.00049315,120]
[331323167,1720225851583,-151.0,0.00049315,14]
[331323168,1720225851596,-151.0,0.00049315,14]
[331323169,1720225851606,-151.0,0.00049315,14]
[331323170,1720225851617,-500.0,0.00049315,120]
[331323171,1720225851627,-500.0,0.00049315,120]
[331323172,1720225851637,-597.12,0.00049315,120]
[331323173,1720225851646,-500.0,0.00049315,120]
[331323174,1720225851656,-500.0,0.00049315,120]
[331323175,1720225851666,-500.0,0.00049315,120]
[331323176,1720225851676,-512.64596457,0.00049315,120]
[331323177,1720225851686,-500.0,0.00049315,120]
[331323178,1720225851696,-467.79090168,0.00049315,120]
[331323179,1720225851705,-500.0,0.00049315,120]
[331323180,1720225851715,-500.0,0.00049315,120]
[331323181,1720225851724,-500.0,0.00049315,120]
[331323182,1720225851733,-500.0,0.00049315,120]
[331323183,1720225851752,-457.5654084,0.00049315,120]
[331323184,1720225851762,-500.0,0.00049315,120]
[331323185,1720225851772,-500.0,0.00049315,120]
[331323186,1720225851782,-500.0,0.00049315,120]
[331323187,1720225851792,-759.17,0.00049315,120]
[331323188,1720225851803,-1212.6,0.00049315,120]
[331323189,1720225851812,-336.11268963,0.00049315,120]
[331323190,1720225851821,-500.0,0.00049315,2]
[331323191,1720225851833,-500.0,0.00049315,120]
[331323192,1720225851843,-2755.47,0.00049315,120]
[331323193,1720225851852,-500.0,0.00049315,120]
[331323194,1720225851863,-2755.47,0.00049315,120]
[331323195,1720225851872,-2755.47,0.00049315,120]
[331323196,1720225851882,-499.76185999,0.00049315,120]
[331323197,1720225851892,-500.0,0.00049315,120]
[331323198,1720225851901,-500.0,0.00049315,120]
[331323199,1720225851911,-2755.47,0.00049315,120]
[331323200,1720225851921,-500.0,0.00049315,120]
[331323201,1720225851932,-2755.47,0.00049315,120]
[331323202,1720225851941,-2755.47,0.00049315,120]
[331323203,1720225851951,-2755.47,0.00049315,120]
[331323204,1720225851962,-2755.47,0.00049315,120]
[331323205,1720225851971,-500.0,0.00049315,120]
[331323206,1720225851981,-2755.47,0.00049315,120]
[331323207,1720225851991,-500.0,0.00049315,120]
[331323208,1720225852001,-2755.47,0.00049315,120]
[331323209,1720225852010,-500.0,0.00049315,120]
[331323210,1720225852020,-2755.47,0.00049315,120]
[331323211,1720225852030,-2755.47,0.00049315,120]
[331323212,1720225852040,-385.40114792,0.00049315,120]
[331323213,1720225852050,-2755.47,0.00049315,120]
[331323214,1720225852060,-151.0,0.00049315,14]
[331323215,1720225852073,-151.0,0.00049315,14]
[331323216,1720225852085,-151.0,0.00049315,14]
[331323217,1720225852096,-500.0,0.00049315,120]
[331323218,1720225852105,-500.0,0.00049315,120]
[331323219,1720225852307,-6631.95,0.00049315,120]
[331323220,1720225852322,-501.43093412,0.00049315,7]
[331323221,1720225852333,-500.0,0.00049315,120]
[331323222,1720225852343,-500.0,0.00049315,120]
[331323223,1720225852352,-500.0,0.00049315,120]
[331323224,1720225852364,-151.0,0.00049315,14]
[331323225,1720225852374,-151.0,0.00049315,14]
[331323226,1720225852385,-151.0,0.00049315,14]
[331323227,1720225852396,-151.0,0.00049315,14]
[331323228,1720225852407,-151.0,0.00049315,14]
[331323229,1720225852417,-1495.68,0.00049315,120]
[331323230,1720225852427,-500.0,0.00049315,120]
[331323231,1720225852437,-500.0,0.00049315,120]
[331323232,1720225852446,-500.0,0.00049315,120]
[331323233,1720225852456,-151.0,0.00049315,14]
[331323234,1720225852465,-151.0,0.00049315,14]
[331323235,1720225852474,-151.0,0.00049315,14]
[331323236,1720225852484,-504.01171455,0.00049315,120]
[331323237,1720225852494,-174.724545,0.00049315,14]
[331323238,1720225852503,-508.52011009,0.00049315,120]
[331323239,1720225852513,-500.0,0.00049315,120]
[331323240,1720225852523,-500.0,0.00049315,120]
[331323241,1720225852532,-500.0,0.00049315,120]
[331323242,1720225852542,-500.0,0.00049315,120]
[331323243,1720225852551,-500.49014017,0.00049315,120]
[331323244,1720225852560,-500.0,0.00049315,120]
[331323245,1720225852569,-500.0,0.00049315,120]
[331323246,1720225852579,-500.0,0.00049315,120]
[331323247,1720225852591,-2028.17,0.00049315,120]
[331323248,1720225852600,-500.0,0.00049315,120]
[331323249,1720225852609,-500.0,0.00049315,120]
[331323250,1720225852619,-500.71735125,0.00049315,120]
[331323251,1720225852629,-503.91857513,0.00049315,120]
[331323252,1720225852638,-511.39943314,0.00049315,120]
[331323253,1720225852649,-151.0,0.00049315,14]
[331323254,1720225852660,-511.28822662,0.00049315,120]
[331323255,1720225852670,-1139.53,0.00049315,120]
[331323256,1720225852679,-500.0,0.00049315,120]
[331323257,1720225852688,-152.326754,0.00049315,14]
[331323258,1720225852698,-500.0,0.00049315,120]
[331323259,1720225852707,-500.0,0.00049315,120]
[331323260,1720225852718,-152.326754,0.00049315,14]
[331323261,1720225852727,-152.326754,0.00049315,14]
[331323262,1720225852738,-152.326754,0.00049315,14]
[331323263,1720225852748,-152.326754,0.00049315,14]
[331323264,1720225852757,-1146.06,0.00049315,120]
[331323265,1720225852792,-500.0,0.00049315,120]
[331323266,1720225852802,-500.0,0.00049315,120]
[331323267,1720225852812,-500.0,0.00049315,120]
[331323268,1720225852822,-500.0,0.00049315,120]
[331323269,1720225852832,-500.0,0.00049315,120]
[331323270,1720225852842,-500.0,0.00049315,120]
[331323271,1720225852851,-152.326754,0.00049315,14]
[331323272,1720225852861,-500.0,0.00049315,120]
[331323273,1720225852870,-500.0,0.00049315,120]
[331323274,1720225852880,-152.326754,0.00049315,14]
[331323275,1720225852889,-728.52,0.00049315,120]
[331323276,1720225852900,-500.0,0.00049315,120]
[331323277,1720225852909,-152.326754,0.00049315,14]
[331323278,1720225852920,-152.326754,0.00049315,14]
[331323279,1720225852930,-152.326754,0.00049315,14]
[331323280,1720225852940,-500.0,0.00049315,120]
[331323281,1720225852951,-500.0,0.00049315,120]
[331323282,1720225852960,-500.0,0.00049315,120]
[331323283,1720225852969,-500.0,0.00049315,120]
[331323284,1720225852979,-500.0,0.00049315,120]
[331323285,1720225852988,-500.0,0.00049315,120]
[331323286,1720225852997,-1564.2,0.00049315,120]
[331323287,1720225853006,-597.19,0.00049315,120]
[331323288,1720225853016,-500.0,0.00049315,120]
[331323289,1720225853025,-1195.47,0.00049315,120]
[331323290,1720225853034,-500.0,0.00049315,120]
[331323291,1720225853043,-500.0,0.00049315,120]
[331323292,1720225853052,-500.0,0.00049315,120]
[331323293,1720225853062,-500.0,0.00049315,120]
[331323294,1720225853071,-500.0,0.00049315,120]
[331323295,1720225853080,-500.0,0.00049315,120]
[331323296,1720225853090,-500.0,0.00049315,120]
[331323297,1720225853099,-1167.072606,0.00049315,14]
[331323298,1720225853108,-1167.072606,0.00049315,14]
[331323299,1720225853118,-1167.072606,0.00049315,14]
[331323300,1720225853127,-500.0,0.00049315,120]
[331323301,1720225853136,-1167.072606,0.00049315,14]
[331323302,1720225853148,-1167.072606,0.00049315,14]
[331323303,1720225853159,-500.0,0.00049315,120]
[331323304,1720225853168,-1167.072606,0.00049315,14]
[331323305,1720225853178,-500.0,0.00049315,120]
[331323306,1720225853187,-1167.072606,0.00049315,14]
[331323307,1720225853197,-1167.072606,0.00049315,14]
[331323308,1720225853206,-500.0,0.00049315,120]
[331323309,1720225853215,-500.0,0.00049315,120]
[331323310,1720225853225,-500.0,0.00049315,120]
[331323311,1720225853234,-1167.072606,0.00049315,14]
[331323312,1720225853243,-1167.072606,0.00049315,14]
[331323313,1720225853253,-2597.02,0.00049315,120]
[331323314,1720225853262,-500.0,0.00049315,120]
[331323315,1720225853271,-502.30739428,0.00049315,120]
[331323316,1720225853280,-500.0,0.00049315,120]
[331323317,1720225853289,-10102.91230128,0.00049315,120]
[331323318,1720225938766,741.24094921,0.00043834,120]
[331323339,1720226843191,-168.301811,0.00021096,2]
[331323340,1720226843212,-150.436,0.0003,7]
[331323341,1720226843234,-4785.9113363,0.0003467,4]
[331323342,1720226843255,-1392.46209166,0.00037899,4]
[331323343,1720226843278,-659.63990418,0.00039177,2]
[331323344,1720226843298,-1029.08397233,0.00039177,4]
[331323345,1720226843320,-125.14694675,0.00039568,2]
[331323346,1720226847325,-37.43034725,0.00039568,2]
[331323347,1720226848118,-247.26523235,0.00039999,2]
[331323348,1720226848576,-268.95171548,0.00039999,4]
[331323349,1720226849715,-166.35045357,0.00040229,4]
[331323350,1720226850258,-309.90079067,0.00040229,4]
[331323351,1720226851401,-250.49193409,0.00040229,4]
[331323352,1720226851807,-154.69833824,0.00040278,4]
[331323353,1720226852171,-166.666666,0.00040419,2]
[331323354,1720226852208,-166.666666,0.00041521,2]
[331323355,1720226852255,-403.21401882,0.00041589,4]
[331323356,1720226852288,-166.666666,0.00042623,2]
[331323357,1720226852314,-166.666666,0.00043725,2]
[331323358,1720226852339,-255.50398099,0.00043834,4]
[331323359,1720226852362,-166.666666,0.00044827,2]
[331323360,1720226852383,-246.86339781,0.00045,30]
[331323361,1720226852406,-166.666666,0.00045929,2]
[331323362,1720226852428,-1373.67312084,0.00047,2]
[331323363,1720226852728,-1626.32687916,0.00047,2]
[331323364,1720226852751,-1048.5238484,0.00049204,28]
[331323365,1720226852774,-348.02032923,0.00049205,2]
[331323366,1720226852802,-162.90434728,0.00049215,2]
[331323367,1720226852826,-1499.04295478,0.00049215,120]
[331323372,1720226948253,-154.69833824,0.00043834,4]
[331323373,1720226948291,-154.86833408,0.00043834,4]
[331323374,1720226948357,-442.51196875,0.00043834,4]
[331323376,1720227029929,958.44471616,0.00043834,4]
[331323388,1720227039217,154.66746495,0.00043834,4]
[331323457,1720227047107,-162.90434727,0.00049214,2]
[331323458,1720227047116,-162.90434727,0.00049214,2]
[331323459,1720227047126,-162.90434727,0.00049215,2]
[331323460,1720227047136,-162.90434727,0.00049215,2]
[331323461,1720227047145,-1306.99,0.00049295,3]
[331323462,1720227047154,-1089.16,0.00049295,3]
[331323463,1720227047163,-10000.03,0.000493,30]
[331323464,1720227047172,-15547.60692099,0.00049303,2]
[331323465,1720227047181,-500.0,0.00049304,7]
[331323466,1720227047191,-312503.17876897,0.00049305,6]
[331323467,1720227047203,-27272.62917603,0.00049305,6]
[331323468,1720227047215,-207.21684908,0.00049314,120]
[331323469,1720227047225,-500.0,0.00049314,120]
[331323470,1720227047234,-500.0,0.00049314,120]
[331323471,1720227047244,-500.0,0.00049314,120]
[331323472,1720227047254,-500.0,0.00049314,120]
[331323473,1720227047263,-500.0,0.00049314,120]
[331323474,1720227047272,-345.12045973,0.00049314,120]
[331323475,1720227047281,-503.53613792,0.00049314,120]
[331323476,1720227047290,-200.0,0.00049314,120]
[331323477,1720227047299,-500.0,0.00049314,120]
[331323478,1720227047309,-500.0,0.00049314,120]
[331323479,1720227047318,-277.84300955,0.00049314,120]
[331323480,1720227047327,-432.46453811,0.00049314,120]
[331323481,1720227047336,-500.0,0.00049314,120]
[331323482,1720227047345,-550.0,0.00049314,120]
[331323483,1720227047355,-500.0,0.00049314,120]
[331323484,1720227047364,-550.0,0.00049314,120]
[331323485,1720227047374,-500.0,0.00049314,120]
[331323486,1720227047383,-550.0,0.00049314,120]
[331323487,1720227047392,-156.57080053,0.00049314,120]
[331323488,1720227047401,-500.0,0.00049314,120]
[331323489,1720227047410,-550.0,0.00049314,120]
[331323490,1720227047419,-208.54810661,0.00049314,31]
[331323491,1720227047428,-500.0,0.00049314,120]
[331323493,1720227047437,-500.0,0.00049314,120]
[331323494,1720227047446,-365.0,0.00049314,120]
[331323496,1720227047455,-500.0,0.00049314,120]
[331323498,1720227047466,-550.0,0.00049314,120]
[331323499,1720227047475,-500.0,0.00049314,120]
[331323500,1720227047484,-500.0,0.00049314,120]
[331323501,1720227047494,-200.0,0.00049314,120]
[331323502,1720227047503,-183.02041543,0.00049314,120]
[331323503,1720227047513,-500.0,0.00049314,120]
[331323504,1720227047522,-550.0,0.00049314,120]
[331323505,1720227047531,-16718.82108353,0.00049315,61]
[331323506,1720227047540,-500.0,0.00049315,120]
[331323507,1720227047550,-502.7738456,0.00049315,120]
[331323508,1720227047559,-500.34556782,0.00049315,120]
[331323509,1720227047568,-400.28620245,0.00049315,120]
[331323510,1720227047577,-500.0,0.00049315,120]
[331323511,1720227047586,-500.0,0.00049315,120]
[331323512,1720227047595,-500.0,0.00049315,120]
[331323513,1720227047604,-500.0,0.00049315,120]
[331323514,1720227047614,-500.0,0.00049315,120]
[331323515,1720227047623,-500.0,0.00049315,120]
[331323516,1720227047632,-500.0,0.00049315,120]
[331323517,1720227047641,-500.0,0.00049315,120]
[331323518,1720227047650,-214.09258691,0.00049315,120]
[331323519,1720227047659,-500.0,0.00049315,120]
[331323520,1720227047668,-500.0,0.00049315,120]
[331323521,1720227047677,-824.85,0.00049315,120]
[331323522,1720227047687,-500.0,0.00049315,120]
[331323523,1720227047696,-450.5902221,0.00049315,120]
[331323524,1720227047706,-181.2167162,0.00049315,120]
[331323525,1720227047718,-604.76,0.00049315,120]
[331323526,1720227047727,-500.0,0.00049315,120]
[331323527,1720227047738,-502.36,0.00049315,120]
[331323528,1720227047748,-500.0,0.00049315,120]
[331323529,1720227047758,-151.0,0.00049315,14]
[331323530,1720227047770,-500.0,0.00049315,120]
[331323531,1720227047779,-616.8358431,0.00049315,120]
[331323532,1720227047788,-500.0,0.00049315,120]
[331323533,1720227047798,-500.0,0.00049315,120]
[331323534,1720227047808,-500.0,0.00049315,120]
[331323535,1720227047818,-603.04,0.00049315,120]
[331323536,1720227047827,-500.0,0.00049315,120]
[331323537,1720227047836,-500.0,0.00049315,120]
[331323538,1720227047848,-500.0,0.00049315,120]
[331323539,1720227047857,-500.0,0.00049315,3]
[331323540,1720227047866,-500.0,0.00049315,120]
[331323541,1720227047875,-500.0,0.00049315,120]
[331323542,1720227047884,-500.0,0.00049315,120]
[331323543,1720227047894,-500.0,0.00049315,120]
[331323544,1720227047903,-500.0,0.00049315,120]
[331323545,1720227047912,-500.0,0.00049315,30]
[331323546,1720227047922,-500.0,0.00049315,120]
[331323547,1720227047932,-1190.62,0.00049315,60]
[331323548,1720227047941,-500.0,0.00049315,120]
[331323549,1720227047964,-500.0,0.00049315,120]
[331323550,1720227047974,-500.0,0.00049315,120]
[331323551,1720227047986,-500.0,0.00049315,120]
[331323552,1720227047996,-500.0,0.00049315,120]
[331323553,1720227048006,-500.0,0.00049315,120]
[331323554,1720227048015,-500.0,0.00049315,120]
[331323555,1720227048024,-500.0,0.00049315,120]
[331323556,1720227048034,-500.0,0.00049315,120]
[331323557,1720227048044,-500.0,0.00049315,120]
[331323558,1720227048054,-500.0,0.00049315,120]
[331323559,1720227048064,-500.0,0.00049315,120]
[331323560,1720227048073,-6355.62,0.00049315,120]
[331323561,1720227048083,-500.0,0.00049315,120]
[331323562,1720227048092,-510.88249659,0.00049315,120]
[331323563,1720227048102,-500.0,0.00049315,120]
[331323564,1720227048112,-500.0,0.00049315,120]
[331323565,1720227048121,-655.43,0.00049315,120]
[331323566,1720227048131,-503.32400149,0.00049315,120]
[331323567,1720227048141,-500.0,0.00049315,120]
[331323568,1720227048150,-594.90378457,0.00049315,120]
[331323569,1720227048160,-500.0,0.00049315,120]
[331323570,1720227048169,-500.0,0.00049315,120]
[331323571,1720227048178,-500.0,0.00049315,120]
[331323572,1720227048188,-500.0,0.00049315,120]
[331323573,1720227048197,-500.0,0.00049315,120]
[331323574,1720227048207,-550.31370914,0.00049315,120]
[331323575,1720227048223,-513.69330716,0.00049315,120]
[331323576,1720227048233,-500.43385613,0.00049315,120]
[331323577,1720227048243,-500.0,0.00049315,120]
[331323578,1720227048252,-500.0,0.00049315,120]
[331323579,1720227048262,-500.0,0.00049315,120]
[331323580,1720227048273,-506.17867035,0.00049315,120]
[331323581,1720227048283,-500.0,0.00049315,120]
[331323582,1720227048293,-500.0,0.00049315,120]
[331323583,1720227048302,-500.0,0.00049315,120]
[331323584,1720227048312,-698.16,0.00049315,120]
[331323585,1720227048321,-500.0,0.00049315,120]
[331323586,1720227048331,-500.0,0.00049315,120]
[331323587,1720227048341,-963.59,0.00049315,120]
[331323588,1720227048351,-500.0,0.00049315,120]
[331323589,1720227048361,-1119.28,0.00049315,120]
[331323590,1720227048371,-500.0,0.00049315,120]
[331323591,1720227048382,-500.0,0.00049315,120]
[331323592,1720227048391,-500.0,0.00049315,120]
[331323593,1720227048401,-550.88333421,0.00049315,120]
[331323594,1720227048410,-500.0,0.00049315,120]
[331323595,1720227048420,-500.81615623,0.00049315,120]
[331323596,1720227048429,-500.0,0.00049315,120]
[331323597,1720227048439,-160.02687125,0.00049315,120]
[331323598,1720227048448,-500.0,0.00049315,120]
[331323599,1720227048458,-533.1,0.00049315,120]
[331323600,1720227048470,-1262.28,0.00049315,120]
[331323601,1720227048480,-500.0,0.00049315,120]
[331323602,1720227048490,-500.0,0.00049315,120]
[331323603,1720227048499,-306.30698272,0.00049315,120]
[331323604,1720227048508,-500.0,0.00049315,120]
[331323605,1720227048517,-512.88,0.00049315,120]
[331323606,1720227048526,-500.0,0.00049315,120]
[331323607,1720227048536,-500.0,0.00049315,120]
[331323608,1720227048546,-500.0,0.00049315,120]
[331323609,1720227048556,-500.0,0.00049315,120]
[331323610,1720227048565,-500.0,0.00049315,120]
[331323611,1720227048574,-500.0,0.00049315,120]
[331323612,1720227048584,-500.0,0.00049315,120]
[331323613,1720227048593,-500.0,0.00049315,120]
[331323614,1720227048603,-535.85,0.00049315,120]
[331323615,1720227048612,-500.0,0.00049315,120]
[331323616,1720227048622,-500.0,0.00049315,120]
[331323617,1720227048631,-500.0,0.00049315,120]
[331323618,1720227048641,-500.0,0.00049315,120]
[331323619,1720227048650,-500.0,0.00049315,120]
[331323620,1720227048659,-500.0,0.00049315,120]
[331323621,1720227048669,-500.0,0.00049315,120]
[331323622,1720227048679,-500.0,0.00049315,120]
[331323623,1720227048689,-500.0,0.00049315,120]
[331323624,1720227048700,-500.0,0.00049315,120]
[331323625,1720227048713,-547.36,0.00049315,120]
[331323626,1720227048723,-500.0,0.00049315,120]
[331323627,1720227048732,-500.0,0.00049315,120]
[331323628,1720227048742,-500.0,0.00049315,120]
[331323629,1720227048751,-500.0,0.00049315,120]
[331323630,1720227048763,-500.0,0.00049315,120]
[331323631,1720227048773,-500.0,0.00049315,120]
[331323632,1720227048783,-500.0,0.00049315,120]
[331323633,1720227048792,-500.0,0.00049315,120]
[331323634,1720227048803,-500.0,0.00049315,120]
[331323635,1720227048812,-500.0,0.00049315,120]
[331323636,1720227048821,-500.0,0.00049315,120]
[331323637,1720227048830,-500.0,0.00049315,120]
[331323638,1720227048841,-1096.35,0.00049315,120]
[331323639,1720227048851,-500.0,0.00049315,120]
[331323640,1720227048860,-880.47,0.00049315,120]
[331323641,1720227048869,-500.0,0.00049315,120]
[331323642,1720227048879,-500.0,0.00049315,120]
[331323643,1720227048888,-500.0,0.00049315,120]
[331323644,1720227048898,-500.0,0.00049315,120]
[331323645,1720227048907,-707.83,0.00049315,120]
[331323646,1720227048917,-500.0,0.00049315,120]
[331323647,1720227048926,-500.0,0.00049315,120]
[331323648,1720227048936,-527.56,0.00049315,120]
[331323649,1720227048945,-630.18,0.00049315,120]
[331323650,1720227048955,-703.58,0.00049315,120]
[331323651,1720227048966,-500.0,0.00049315,120]
[331323652,1720227048976,-500.0,0.00049315,120]
[331323653,1720227048987,-501.37394267,0.00049315,120]
[331323654,1720227048997,-500.0,0.00049315,120]
[331323655,1720227049007,-500.0,0.00049315,120]
[331323656,1720227049016,-500.0,0.00049315,120]
[331323657,1720227049025,-500.0,0.00049315,120]
[331323658,1720227049037,-500.0,0.00049315,120]
[331323659,1720227049047,-500.0,0.00049315,120]
[331323660,1720227049056,-500.0,0.00049315,120]
[331323661,1720227049065,-500.0,0.00049315,120]
[331323662,1720227049074,-500.0,0.00049315,120]
[331323663,1720227049084,-500.0,0.00049315,120]
[331323664,1720227049093,-500.0,0.00049315,120]
[331323665,1720227049102,-502.09587771,0.00049315,120]
[331323666,1720227049111,-500.0,0.00049315,120]
[331323667,1720227049121,-500.0,0.00049315,120]
[331323668,1720227049130,-500.0,0.00049315,120]
[331323669,1720227049140,-1290.18,0.00049315,120]
[331323670,1720227049150,-500.0,0.00049315,120]
[331323671,1720227049159,-238.21381551,0.00049315,120]
[331323672,1720227049168,-500.0,0.00049315,120]
[331323673,1720227049178,-500.0,0.00049315,120]
[331323674,1720227049187,-500.0,0.00049315,120]
[331323675,1720227049196,-502.89232808,0.00049315,120]
[331323676,1720227049206,-500.0,0.00049315,120]
[331323677,1720227049218,-500.0,0.00049315,120]
[331323678,1720227049227,-502.20551852,0.00049315,120]
[331323679,1720227049238,-659.66,0.00049315,120]
[331323680,1720227049253,-500.0,0.00049315,120]
[331323681,1720227049263,-500.0,0.00049315,120]
[331323682,1720227049275,-502.78324507,0.00049315,120]
[331323683,1720227049285,-1581.87,0.00049315,120]
[331323684,1720227049294,-500.0,0.00049315,120]
[331323685,1720227049303,-500.0,0.00049315,120]
[331323686,1720227049313,-500.0,0.00049315,120]
[331323687,1720227049323,-500.0,0.00049315,120]
[331323688,1720227049333,-500.0,0.00049315,120]
[331323689,1720227049343,-500.0,0.00049315,120]
[331323690,1720227049352,-975.03,0.00049315,120]
[331323691,1720227049362,-500.0,0.00049315,120]
[331323692,1720227049372,-400.90898615,0.00049315,120]
[331323693,1720227049383,-500.0,0.00049315,120]
[331323694,1720227049394,-500.0,0.00049315,120]
[331323695,1720227049404,-500.0,0.00049315,120]
[331323699,1720227049552,-500.0,0.00049315,2]
[331323701,1720227049564,-793.97,0.00049315,120]
[331323703,1720227049573,-746.07,0.00049315,120]
[331323705,1720227049583,-500.0,0.00049315,120]
[331323707,1720227049593,-500.0,0.00049315,120]
[331323709,1720227049602,-9442.33,0.00049315,120]
[331323711,1720227049611,-500.0,0.00049315,120]
[331323713,1720227049621,-500.0,0.00049315,120]
[331323715,1720227049631,-500.0,0.00049315,120]
[331323717,1720227049640,-500.0,0.00049315,120]
[331323719,1720227049650,-500.0,0.00049315,120]
[331323721,1720227049659,-500.0,0.00049315,120]
[331323723,1720227049669,-172.79929326,0.00049315,120]
[331323725,1720227049679,-500.0,0.00049315,120]
[331323727,1720227049689,-500.0,0.00049315,120]
[331323729,1720227049698,-5385.32,0.00049315,120]
[331323731,1720227049709,-500.0,0.00049315,120]
[331323733,1720227049719,-500.0,0.00049315,120]
[331323735,1720227049729,-500.0,0.00049315,120]
[331323737,1720227049739,-1092.05,0.00049315,120]
[331323739,1720227049749,-831.87,0.00049315,120]
[331323741,1720227049762,-500.0,0.00049315,120]
[331323743,1720227049772,-500.0,0.00049315,120]
[331323745,1720227049781,-151.0,0.00049315,14]
[331323747,1720227049791,-500.0,0.00049315,120]
[331323749,1720227049802,-500.0,0.00049315,120]
[331323751,1720227049812,-161.660771,0.00049315,14]